bitfinex/quotes_BTCUSD_20250320
["timestamp","ask_amount","ask_price","bid_price","bid_amount"]
[1742480516685,0.02974847,86346.0,86345.0,0.000339]
[1742480516889,0.0403759,86346.0,86345.0,0.000339]
[1742480517395,0.01816747,86346.0,86345.0,0.000339]
[1742480517919,0.31816747,86346.0,86345.0,0.000339]
[1742480518163,0.32974847,86346.0,86345.0,0.000339]
[1742480518408,0.31816747,86346.0,86345.0,0.000339]
[1742480518655,0.33999609,86346.0,86345.0,0.000339]
[1742480519429,0.47411197,86346.0,86345.0,0.002339]
[1742480519916,0.47411197,86346.0,86345.0,0.000339]
[1742480519917,0.45957112,86346.0,86345.0,0.000339]
[1742480520119,0.46057112,86346.0,86345.0,0.000339]
[1742480520394,0.69219712,86346.0,86345.0,0.000339]
[1742480520532,0.57362209,86346.0,86345.0,0.000339]
[1742480520741,0.55545462,86346.0,86345.0,0.000339]
[1742480520941,0.02270497,86352.0,86345.0,0.000339]
[1742480520942,0.231595,86358.0,86348.0,0.011581]
[1742480521150,0.011579,86362.0,86346.0,0.011581]
[1742480521151,0.011579,86356.0,86350.0,0.231615]
[1742480521356,0.3,86357.0,86352.0,0.231607]
[1742480521563,0.231575,86365.0,86351.0,0.231612]
[1742480521564,0.011578,86366.0,86358.0,0.011579]
[1742480521815,0.231587,86361.0,86357.0,0.231591]
[1742480522057,0.01051265,86366.0,86360.0,0.011579]
[1742480522260,0.011578,86365.0,86357.0,0.011579]
[1742480522435,0.62375052,86380.0,86345.0,0.000339]
[1742480522436,0.2528979,86380.0,86345.0,0.000339]
[1742480522697,0.0220503,86376.0,86368.0,0.011578]
[1742480522899,0.0220503,86376.0,86367.0,0.011578]
[1742480522900,0.231562,86370.0,86366.0,0.231567]
[1742480523052,0.3,86369.0,86366.0,0.230567]
[1742480523213,0.3,86369.0,86368.0,0.231567]
[1742480523422,0.3,86369.0,86357.0,0.231594]
[1742480523423,0.543207,86346.0,86333.0,0.0003394]
[1742480523631,0.311581,86346.0,86333.0,0.0003394]
[1742480523849,0.543207,86346.0,86333.0,0.0003394]
[1742480524052,0.66278203,86346.0,86336.0,0.01060894]
[1742480525082,0.68094945,86346.0,86336.0,0.01060894]
[1742480525774,0.68094945,86346.0,86333.0,0.0003394]
[1742480525975,0.68094945,86346.0,86345.0,0.001339]
[1742480526564,0.56337442,86346.0,86345.0,0.001339]
[1742480527182,0.68294945,86346.0,86345.0,0.001339]
[1742480527515,0.68094945,86346.0,86345.0,0.000339]
[1742480528466,0.68094945,86346.0,86333.0,0.0003394]
[1742480528467,0.543217,86342.0,86333.0,0.0003394]
[1742480528664,0.81713288,86342.0,86341.0,0.00146377]
[1742480529312,0.80259203,86342.0,86341.0,0.00146377]
[1742480530095,0.80459203,86342.0,86341.0,0.00146377]
[1742480530297,0.8276839,86342.0,86341.0,0.00146377]
[1742480531389,0.685017,86342.0,86341.0,0.00146377]
[1742480531831,0.543217,86342.0,86341.0,0.00146377]
[1742480532220,0.544217,86342.0,86341.0,0.00146377]
[1742480532684,0.66379203,86342.0,86341.0,0.00146377]
[1742480533106,0.543217,86342.0,86341.0,0.00146377]
[1742480534457,0.3,86342.0,86341.0,0.00146377]
[1742480534664,0.531636,86342.0,86341.0,0.00146377]
[1742480534865,0.543217,86342.0,86341.0,0.00146377]
[1742480535842,0.66379203,86342.0,86341.0,0.00146377]
[1742480536043,0.66279203,86342.0,86341.0,0.00146377]
[1742480536173,0.68095979,86342.0,86341.0,0.00246377]
[1742480536699,0.78111819,86342.0,86341.0,0.00246377]
[1742480537077,0.78111819,86342.0,86341.0,0.00146377]
[1742480537923,0.78211819,86342.0,86341.0,0.00146377]
[1742480538117,0.75895979,86342.0,86341.0,0.00146377]
[1742480538415,0.90517979,86342.0,86341.0,0.00146377]
[1742480538973,0.82207979,86342.0,86341.0,0.00146377]
[1742480539283,0.70150476,86342.0,86341.0,0.00146377]
[1742480539496,0.70350476,86342.0,86341.0,0.00146377]
[1742480539743,0.82307979,86342.0,86341.0,0.00146377]
[1742480539963,0.83562064,86342.0,86341.0,0.00146377]
[1742480540224,0.83762064,86342.0,86341.0,0.00146377]
[1742480540456,0.83562064,86342.0,86341.0,0.00146377]
[1742480540725,0.81745288,86342.0,86341.0,0.00146377]
[1742480540901,0.81845288,86342.0,86341.0,0.00146377]
[1742480541339,0.80391203,86342.0,86341.0,0.00146377]
[1742480542321,0.384337,86342.0,86341.0,0.00146377]
[1742480542876,0.50391203,86342.0,86341.0,0.00146377]
[1742480543079,0.80391203,86342.0,86341.0,0.00146377]
[1742480543252,0.684337,86342.0,86341.0,0.00146377]
[1742480544509,0.544217,86342.0,86341.0,0.00146377]
[1742480545655,0.001,86342.0,86341.0,0.23310277]
[1742480545857,0.232636,86342.0,86341.0,0.00146377]
[1742480546088,0.244217,86342.0,86341.0,0.00146377]
[1742480546316,0.243217,86342.0,86341.0,0.00146377]
[1742480546499,0.544217,86342.0,86341.0,0.00146377]
[1742480547032,0.3,86342.0,86341.0,0.23310277]
[1742480547405,0.3,86342.0,86341.0,0.00146377]
[1742480547843,0.3,86342.0,86341.0,0.24468377]
[1742480548043,0.0001696,86345.0,86344.0,0.243212]
[1742480548250,0.0001696,86345.0,86344.0,0.36278703]
[1742480548386,0.00888745,86379.0,86344.0,0.13018992]
[1742480548387,0.02359543,86372.0,86344.0,0.13018992]
[1742480548605,0.02359543,86372.0,86365.0,0.243153]
[1742480548813,0.011577,86371.0,86365.0,0.011578]
[1742480549032,0.011577,86371.0,86359.0,0.089779]
[1742480549033,0.011579,86358.0,86353.0,1.5]
[1742480549252,0.011579,86363.0,86355.0,0.01158]
[1742480549651,0.231586,86361.0,86356.0,0.231599]
[1742480549867,0.231586,86361.0,86358.0,0.231593]
[1742480550312,0.011579,86362.0,86359.0,0.231591]
[1742480550491,0.2317446,86366.0,86362.0,0.23158]
[1742480550492,0.3,86365.0,86362.0,0.23158]
[1742480550705,0.3,86365.0,86363.0,0.243157]
[1742480550908,0.0001696,86366.0,86365.0,0.243153]
[1742480551623,0.011578,86365.0,86361.0,0.231585]
[1742480551944,0.0117476,86366.0,86361.0,0.243164]
[1742480552143,0.0001696,86366.0,86365.0,0.011578]
[1742480552351,0.0001696,86366.0,86362.0,0.231581]
[1742480552542,0.0001696,86366.0,86363.0,0.23158]
[1742480552923,0.2317426,86366.0,86362.0,0.243162]
[1742480553285,0.2317426,86366.0,86365.0,0.234575]
[1742480553286,0.0001696,86366.0,86365.0,0.234575]
[1742480553494,0.0001696,86366.0,86365.0,0.243153]
[1742480553688,0.0001696,86366.0,86364.0,0.011578]
[1742480553906,0.0001696,86366.0,86363.0,0.23458]
[1742480554271,0.24990288,86366.0,86363.0,0.231579]
[1742480554465,0.0001696,86366.0,86365.0,0.246153]
[1742480554688,0.0001696,86366.0,86365.0,0.36572803]
[1742480555970,0.0001696,86366.0,86365.0,0.36272803]
[1742480556816,0.0001696,86366.0,86365.0,0.36472803]
[1742480556817,0.0011696,86366.0,86365.0,0.36472803]
[1742480557007,0.0011696,86366.0,86365.0,1.86472803]
[1742480557389,0.0011696,86366.0,86365.0,2.00404803]
[1742480557591,0.0011696,86366.0,86365.0,0.50404803]
[1742480557817,0.0011696,86366.0,86365.0,0.50400803]
[1742480558995,6e-07,86366.0,86365.0,0.58600803]
[1742480559596,6e-07,86366.0,86365.0,0.60554888]
[1742480560030,0.0001696,86381.0,86380.0,0.243111]
[1742480560232,0.0001696,86381.0,86380.0,0.50196603]
[1742480560455,0.0001696,86381.0,86380.0,0.50096603]
[1742480560648,0.0001696,86381.0,86380.0,0.51147023]
[1742480560871,0.0001696,86381.0,86380.0,1.10795023]
[1742480561352,0.00029407,86381.0,86380.0,1.10795023]
[1742480563325,0.00029407,86381.0,86380.0,1.12249108]
[1742480563326,7e-08,86381.0,86380.0,1.12249108]
[1742480563511,7e-08,86381.0,86380.0,1.23489108]
[1742480563716,0.0001698,86400.0,86399.0,0.243058]
[1742480564040,0.00027082,86400.0,86399.0,0.50191303]
[1742480566245,0.00027082,86400.0,86399.0,0.36263303]
[1742480566454,0.00027082,86400.0,86399.0,0.50187303]
[1742480566918,0.00027082,86400.0,86399.0,0.382298]
[1742480567150,0.00027082,86400.0,86399.0,0.388298]
[1742480567383,0.00027082,86400.0,86399.0,0.243058]
[1742480567864,0.00027082,86400.0,86399.0,0.249058]
[1742480568581,0.00027082,86400.0,86399.0,0.243058]
[1742480569730,0.011574,86398.0,86387.0,0.150815]
[1742480569982,0.231489,86397.0,86391.0,0.011575]
[1742480570387,0.011575,86387.0,86380.0,0.55128]
[1742480570388,0.231526,86384.0,86381.0,0.13924]
[1742480570617,0.011576,86385.0,86380.0,0.55128]
[1742480570850,0.231524,86386.0,86381.0,0.231532]
[1742480571026,0.231522,86385.0,86380.0,0.782813]
[1742480571227,0.543108,86381.0,86380.0,0.55128]
[1742480571422,0.231545,86377.0,86369.0,0.24314]
[1742480571659,0.311576,86381.0,86357.0,0.55108]
[1742480571660,0.011578,86370.0,86360.0,0.011579]
[1742480571873,0.231555,86373.0,86370.0,0.011578]
[1742480572091,0.231552,86374.0,86370.0,0.243138]
[1742480572303,0.231552,86374.0,86368.0,0.231566]
[1742480572304,0.231556,86372.0,86368.0,0.231566]
[1742480572515,0.3,86373.0,86368.0,0.231566]
[1742480572713,0.3,86373.0,86371.0,0.231558]
[1742480572925,0.3,86373.0,86372.0,0.243133]
[1742480573742,0.011578,86369.0,86368.0,0.00012447]
[1742480573950,0.543142,86369.0,86368.0,0.00012447]
[1742480574986,0.56130208,86369.0,86368.0,0.00012447]
[1742480576323,0.56130208,86369.0,86368.0,0.00112447]
[1742480577176,0.56130208,86369.0,86368.0,0.00012447]
[1742480577608,0.56130208,86369.0,86368.0,0.00112447]
[1742480580186,0.543204,86347.0,86346.0,0.0003392]
[1742480580438,0.543204,86347.0,86333.0,0.0003394]
[1742480580439,0.24324,86334.0,86333.0,0.0003394]
[1742480580686,0.54324,86334.0,86333.0,0.0003394]
[1742480580923,0.54324,86334.0,86333.0,0.00046417]
[1742480581161,0.75295196,86334.0,86333.0,0.00046417]
[1742480581871,0.543249,86331.0,86330.0,1.7e-07]
[1742480582099,0.67736488,86331.0,86330.0,1.7e-07]
[1742480583384,0.66282403,86331.0,86330.0,1.7e-07]
[1742480583826,0.68099482,86331.0,86330.0,1.7e-07]
[1742480584772,0.68199482,86331.0,86330.0,1.7e-07]
[1742480585635,0.26241979,86331.0,86330.0,1.7e-07]
[1742480586689,0.38099482,86331.0,86330.0,1.7e-07]
[1742480586891,0.38299482,86331.0,86330.0,1.7e-07]
[1742480587092,0.02017079,86331.0,86330.0,1.7e-07]
[1742480587295,0.02017079,86331.0,86330.0,0.01158317]
[1742480587497,0.01817079,86331.0,86330.0,0.01158317]
[1742480587722,0.01917079,86331.0,86330.0,0.01158317]
[1742480588151,0.01817079,86331.0,86330.0,1.7e-07]
[1742480588356,0.01917079,86331.0,86330.0,0.1962752]
[1742480588502,0.001,86331.0,86330.0,0.8985382]
[1742480588703,0.00012449,86334.0,86333.0,0.243244]
[1742480588908,0.00012449,86334.0,86333.0,0.36281903]
[1742480589115,0.00012449,86334.0,86333.0,0.44121903]
[1742480589116,4.9e-07,86334.0,86333.0,0.44121903]
[1742480589829,4.9e-07,86334.0,86333.0,0.43621903]
[1742480590031,4.9e-07,86334.0,86333.0,0.45575988]
[1742480590232,0.01816253,86357.0,86356.0,0.243178]
[1742480590505,0.0105126,86381.0,86380.0,0.011576]
[1742480590707,0.2315,86393.0,86380.0,0.243111]
[1742480590885,0.011575,86389.0,86382.0,0.011576]
[1742480591119,0.011574,86394.0,86384.0,0.231523]
[1742480591120,0.23151,86390.0,86384.0,0.231523]
[1742480591380,0.231512,86389.0,86384.0,0.231523]
[1742480591632,0.24262983,86390.0,86387.0,0.231514]
[1742480591885,0.3,86388.0,86385.0,0.243096]
[1742480592108,0.3,86388.0,86383.0,0.231525]
[1742480592342,0.011575,86388.0,86383.0,0.231525]
[1742480592575,0.3,86388.0,86385.0,0.231521]
[1742480592802,0.3,86388.0,86385.0,0.243097]
[1742480593037,0.243073,86394.0,86385.0,0.243097]
[1742480593038,0.001,86389.0,86388.0,0.011575]
[1742480593452,0.001,86389.0,86385.0,0.243092]
[1742480593453,0.001,86389.0,86385.0,0.231516]
[1742480593666,0.231525,86384.0,86382.0,0.13928]
[1742480593901,0.3,86376.0,86372.0,0.231556]
[1742480594109,0.3,86376.0,86373.0,0.13924]
[1742480594607,0.3,86376.0,86375.0,0.243125]
[1742480594990,0.01815809,86376.0,86375.0,0.243125]
[1742480596228,0.01815809,86376.0,86375.0,0.382365]
[1742480596948,0.231479,86401.0,86375.0,0.382365]
[1742480596949,0.231475,86403.0,86398.0,0.231485]
[1742480597170,0.01091328,86400.0,86399.0,0.011574]
[1742480597392,0.00029454,86400.0,86398.0,0.231485]
[1742480597636,0.00029454,86400.0,86397.0,0.231488]
[1742480597637,0.01844978,86400.0,86397.0,0.231488]
[1742480597868,0.01844978,86400.0,86388.0,0.370752]
[1742480597869,0.011574,86394.0,86388.0,0.370752]
[1742480598093,0.03002378,86400.0,86390.0,0.231502]
[1742480598313,0.02044978,86400.0,86398.0,0.231485]
[1742480598536,0.03126484,86400.0,86399.0,0.011574]
[1742480598980,0.03126484,86400.0,86397.0,0.003]
[1742480599174,0.011574,86398.0,86397.0,0.003]
[1742480599375,0.231489,86397.0,86390.0,0.243083]
[1742480599586,0.3,86397.0,86387.0,0.150815]
[1742480599798,0.3,86395.0,86390.0,0.011575]
[1742480600016,0.531497,86395.0,86391.0,0.231504]
[1742480600950,0.3,86395.0,86391.0,0.243079]
[1742480601818,0.3,86395.0,86390.0,0.011575]
[1742480601819,0.231498,86394.0,86390.0,0.243081]
[1742480602050,0.231498,86394.0,86391.0,0.003]
[1742480602264,0.011575,86392.0,86391.0,0.003]
[1742480602464,0.73805203,86392.0,86391.0,0.003]
[1742480602690,0.89179288,86392.0,86391.0,0.003]
[1742480603110,0.89179288,86392.0,86356.0,0.69056]
[1742480603111,0.243168,86360.0,86356.0,0.69056]
[1742480603334,0.3,86362.0,86358.0,0.231594]
[1742480603543,0.3,86362.0,86358.0,0.243173]
[1742480603926,0.3,86362.0,86360.0,0.231586]
[1742480604344,0.3,86362.0,86356.0,0.231597]
[1742480604345,0.011579,86358.0,86350.0,0.01158]
[1742480604545,0.231601,86356.0,86353.0,0.231606]
[1742480604755,0.231601,86356.0,86351.0,0.01158]
[1742480604906,0.231601,86356.0,86259.0,0.05765276]
[1742480604907,0.01158,86355.0,86333.0,0.34749]
[1742480605121,0.01158,86355.0,86324.0,0.025]
[1742480605122,0.231623,86348.0,86339.0,0.1392]
[1742480605342,0.23162,86349.0,86339.0,0.1392]
[1742480605343,0.231618,86349.0,86345.0,0.011581]
[1742480605543,0.231618,86349.0,86346.0,0.231625]
[1742480605744,0.231616,86350.0,86346.0,0.231625]
[1742480606101,0.0117436,86394.0,86361.0,0.288165]
[1742480606313,0.231571,86367.0,86361.0,0.1392]
[1742480606518,0.01107896,86369.0,86361.0,0.382365]
[1742480606943,0.01828454,86362.0,86361.0,0.382365]
[1742480607182,0.01828454,86362.0,86361.0,2.00194003]
[1742480608324,0.00012465,86362.0,86361.0,2.00194003]
[1742480608735,6.5e-07,86362.0,86361.0,2.55314003]
[1742480610864,6.5e-07,86362.0,86361.0,2.59768088]
[1742480611076,6.5e-07,86362.0,86361.0,2.73148088]
[1742480612445,6.5e-07,86362.0,86361.0,2.72548088]
[1742480612869,6.5e-07,86362.0,86361.0,2.73148088]
[1742480613073,0.0001698,86400.0,86393.0,0.243075]
[1742480613282,0.00028027,86394.0,86393.0,0.50185003]
[1742480613739,0.00028027,86394.0,86393.0,0.382275]
[1742480614405,0.00028027,86394.0,86393.0,0.50185003]
[1742480614676,0.00028027,86394.0,86393.0,0.50385003]
[1742480615409,0.00028027,86394.0,86393.0,0.50185003]
[1742480616002,0.00028027,86394.0,86393.0,0.50485003]
[1742480616691,0.0001697,86404.0,86403.0,0.243046]
[1742480616692,7.7e-07,86404.0,86403.0,0.243046]
[1742480616893,7.7e-07,86404.0,86403.0,0.36762103]
[1742480617295,7.7e-07,86404.0,86403.0,1.90716188]
[1742480617503,7.7e-07,86404.0,86403.0,1.95566188]
[1742480617867,7.7e-07,86404.0,86403.0,2.33456188]
[1742480619066,0.01814823,86433.0,86419.0,0.243001]
[1742480619300,0.00029421,86420.0,86419.0,1.05281603]
[1742480619764,0.00029421,86420.0,86419.0,2.55281603]
[1742480621699,0.00029421,86420.0,86419.0,2.55881603]
[1742480621937,0.00029421,86420.0,86419.0,1.05881603]
[1742480622530,0.00019636,86420.0,86419.0,1.05881603]
[1742480622698,0.00019636,86420.0,86419.0,1.06755925]
[1742480623832,0.00019636,86420.0,86419.0,0.92839925]
[1742480624044,0.00019636,86420.0,86419.0,1.06751925]
[1742480625829,0.00019636,86420.0,86419.0,1.06151925]
[1742480626787,0.00019636,86420.0,86419.0,1.06751925]
[1742480626996,0.00019636,86420.0,86419.0,1.06151925]
[1742480627417,0.00019636,86420.0,86419.0,1.06751925]
[1742480629148,0.00019636,86420.0,86419.0,1.06151925]
[1742480629574,0.00019636,86420.0,86419.0,1.06751925]
[1742480629811,0.00019636,86420.0,86419.0,1.07854729]
[1742480631383,0.00019636,86420.0,86419.0,1.06751925]
[1742480633552,6e-08,86421.0,86420.0,0.242998]
[1742480633799,6e-08,86421.0,86420.0,0.36257303]
[1742480635893,6e-08,86421.0,86420.0,0.36857303]
[1742480636466,6e-08,86421.0,86420.0,0.36257303]
[1742480636878,6e-08,86421.0,86420.0,0.36857303]
[1742480637502,6e-08,86421.0,86420.0,0.50765303]
[1742480640101,6e-08,86421.0,86420.0,2.00765303]
[1742480647760,0.001,86449.0,86420.0,2.00765303]
[1742480647761,0.001,86449.0,86448.0,0.011567]
[1742480647996,0.00141527,86449.0,86448.0,0.242919]
[1742480648442,0.00141527,86449.0,86448.0,0.36249403]
[1742480649337,0.00141527,86449.0,86448.0,0.36549403]
[1742480649793,0.00141527,86449.0,86448.0,0.36249403]
[1742480650009,0.00141527,86449.0,86448.0,0.36749403]
[1742480650210,2.7e-07,86449.0,86448.0,0.3762509]
[1742480650622,2.7e-07,86449.0,86448.0,1.8762509]
[1742480651495,5.7e-07,86453.0,86452.0,0.242909]
[1742480651692,0.00012508,86453.0,86452.0,0.36248403]
[1742480652558,0.00012508,86453.0,86452.0,0.50148403]
[1742480653207,0.00012508,86453.0,86452.0,0.50748403]
[1742480653846,0.00012508,86453.0,86452.0,0.36848403]
[1742480654041,0.00012508,86453.0,86452.0,0.50748403]
[1742480654918,0.00012508,86453.0,86452.0,0.36848403]
[1742480655123,0.31216408,86453.0,86452.0,0.006]
[1742480655328,0.62373008,86453.0,86452.0,0.006]
[1742480655801,0.231347,86451.0,86446.0,0.231357]
[1742480656032,0.38082508,86453.0,86447.0,0.011567]
[1742480656167,0.231342,86452.0,86448.0,0.231352]
[1742480656385,0.24250923,86452.0,86448.0,0.231352]
[1742480656610,0.01116723,86452.0,86451.0,0.231344]
[1742480656788,0.38082508,86453.0,86451.0,0.242911]
[1742480656993,0.08082508,86453.0,86452.0,0.242909]
[1742480657199,0.08082508,86453.0,86449.0,0.242915]
[1742480657437,0.011567,86450.0,86445.0,0.68972]
[1742480657640,0.3,86449.0,86448.0,0.003]
[1742480657851,0.53135,86449.0,86448.0,0.003]
[1742480658096,0.3,86449.0,86445.0,0.68972]
[1742480658330,0.3,86449.0,86448.0,0.011567]
[1742480658530,0.3,86449.0,86448.0,0.242919]
[1742480659177,0.39194947,86453.0,86451.0,0.231344]
[1742480659412,0.39194947,86453.0,86452.0,0.231342]
[1742480659617,0.39194947,86453.0,86450.0,0.011567]
[1742480659853,0.39194947,86453.0,86452.0,0.231342]
[1742480659854,0.41009142,86453.0,86452.0,0.231342]
[1742480660061,0.09896703,86453.0,86452.0,0.242909]
[1742480660264,0.01826703,86453.0,86452.0,0.242909]
[1742480661055,0.01826703,86453.0,86452.0,0.36248403]
[1742480661251,0.02983303,86453.0,86448.0,0.244919]
[1742480661595,0.01826703,86453.0,86452.0,0.231342]
[1742480661916,0.01826703,86453.0,86452.0,0.003]
[1742480662124,0.01826703,86453.0,86452.0,0.234342]
[1742480662948,0.01826703,86453.0,86452.0,0.014567]
[1742480663210,0.01826703,86453.0,86452.0,0.245909]
[1742480663402,0.01826703,86453.0,86452.0,0.242909]
[1742480663955,0.01826703,86453.0,86452.0,0.36248403]
[1742480664284,0.00012508,86453.0,86452.0,0.36248403]
[1742480665098,0.00012508,86453.0,86452.0,0.36448403]
[1742480665299,0.00012508,86453.0,86452.0,0.36248403]
[1742480667305,0.00012508,86453.0,86452.0,0.247909]
[1742480667485,0.00012508,86453.0,86452.0,0.242909]
[1742480667903,0.00012508,86453.0,86452.0,0.247909]
[1742480668158,0.00012508,86453.0,86452.0,0.3872082]
[1742480668369,0.00012508,86453.0,86452.0,0.2482482]
[1742480669714,0.00012508,86453.0,86452.0,0.36782323]
[1742480670392,0.00012508,86453.0,86452.0,0.36282323]
[1742480670879,0.00012508,86453.0,86452.0,0.36582323]
[1742480671119,0.00012508,86453.0,86452.0,0.36282323]
[1742480671329,0.00012508,86453.0,86452.0,0.50578323]
[1742480672265,0.00012508,86453.0,86452.0,0.50178323]
[1742480672512,0.00012508,86453.0,86452.0,0.50678323]
[1742480675011,0.00012508,86453.0,86452.0,0.3872082]
[1742480675516,0.00012508,86453.0,86452.0,0.0053392]
[1742480675517,0.30866408,86453.0,86452.0,0.0053392]
[1742480675726,0.32680501,86453.0,86452.0,0.0053392]
[1742480676982,0.01826601,86453.0,86452.0,0.2482482]
[1742480677223,0.01826601,86453.0,86452.0,0.2432482]
[1742480677658,0.01826601,86453.0,86452.0,0.2442482]
[1742480677875,0.01826601,86453.0,86452.0,0.36282323]
[1742480678292,0.01826601,86453.0,86452.0,0.36582323]
[1742480678520,0.01826601,86453.0,86452.0,0.36282323]
[1742480678978,0.01826601,86453.0,86452.0,0.36682323]
[1742480679188,0.00012508,86453.0,86452.0,0.36682323]
[1742480680066,0.00012508,86453.0,86452.0,1.86682323]
[1742480680285,0.00012508,86453.0,86452.0,0.0043392]
[1742480680492,0.31833008,86453.0,86452.0,0.0003392]
[1742480680702,0.09356593,86453.0,86452.0,0.0053392]
[1742480681139,0.33647093,86453.0,86452.0,0.0003392]
[1742480681349,0.32490493,86453.0,86452.0,0.0003392]
[1742480681566,0.32490493,86453.0,86452.0,0.0013392]
[1742480681780,0.01826593,86453.0,86452.0,0.2316812]
[1742480681987,0.01826593,86453.0,86452.0,0.2432482]
[1742480682423,0.01826593,86453.0,86452.0,0.2452482]
[1742480683709,0.01826593,86453.0,86452.0,0.2432482]
[1742480683930,0.01826593,86453.0,86452.0,0.36582323]
[1742480684141,0.00012508,86453.0,86452.0,0.36282323]
[1742480684351,0.00012508,86453.0,86452.0,0.50178323]
[1742480685233,5.8e-07,86454.0,86453.0,0.242905]
[1742480685442,0.0001696,86463.0,86462.0,0.24288]
[1742480685443,1.8e-07,86463.0,86462.0,0.24288]
[1742480685653,1.8e-07,86463.0,86462.0,0.36245503]
[1742480688341,1.8e-07,86463.0,86462.0,0.36845503]
[1742480688553,1.8e-07,86463.0,86462.0,0.36245503]
[1742480688982,1.8e-07,86463.0,86462.0,0.36845503]
[1742480690486,1.8e-07,86463.0,86462.0,1.05793503]
[1742480691420,1.8e-07,86463.0,86462.0,1.05193503]
[1742480691638,1.8e-07,86463.0,86462.0,2.55793503]
[1742480691880,1.8e-07,86463.0,86462.0,2.55193503]
[1742480692333,1.8e-07,86463.0,86462.0,2.55793503]
[1742480694324,1.8e-07,86463.0,86462.0,2.55193503]
[1742480694540,1.8e-07,86463.0,86462.0,2.55793503]
[1742480696119,1.8e-07,86463.0,86462.0,2.64093503]
[1742480697046,9.8e-07,86468.0,86467.0,0.242867]
[1742480697259,9.8e-07,86479.0,86478.0,0.247835]
[1742480697458,9.8e-07,86479.0,86478.0,0.52083088]
[1742480697672,4.6e-07,86479.0,86478.0,0.52083088]
[1742480697876,4.6e-07,86479.0,86478.0,2.02083088]
[1742480698108,4.6e-07,86479.0,86478.0,2.09833088]
[1742480698319,9.6e-07,86491.0,86490.0,0.242802]
[1742480698528,9.6e-07,86491.0,86490.0,0.91285703]
[1742480698749,9.6e-07,86491.0,86490.0,0.95965703]
[1742480698959,9.6e-07,86491.0,86490.0,1.31296239]
[1742480699094,4.6e-07,86507.0,86506.0,0.242756]
[1742480699305,4.6e-07,86507.0,86506.0,0.50121103]
[1742480699518,0.00012492,86507.0,86506.0,0.50121103]
[1742480700372,0.00012492,86507.0,86506.0,0.37356644]
[1742480700577,0.00012492,86507.0,86506.0,0.50121103]
[1742480701519,0.00012492,86507.0,86506.0,2.00121103]
[1742480701936,3.2e-07,86509.0,86508.0,0.231192]
[1742480702153,3.2e-07,86509.0,86508.0,0.38417806]
[1742480702371,3.2e-07,86509.0,86508.0,0.80616688]
[1742480702628,3.2e-07,86509.0,86508.0,2.30616688]
[1742480702854,3.2e-07,86509.0,86508.0,2.32944996]
[1742480703095,3.2e-07,86509.0,86508.0,2.35444996]
[1742480703547,3.2e-07,86509.0,86508.0,2.35908096]
[1742480704001,3.2e-07,86509.0,86508.0,2.45908096]
[1742480705249,3.2e-07,86509.0,86508.0,2.46508096]
[1742480705377,3.2e-07,86509.0,86508.0,2.45908096]
[1742480705899,0.01812512,86552.0,86508.0,2.45908096]
[1742480705900,0.0764,86568.0,86567.0,0.011551]
[1742480706220,0.00141504,86569.0,86568.0,0.011551]
[1742480706441,0.00141504,86569.0,86568.0,0.13343584]
[1742480706853,0.00141504,86569.0,86568.0,0.28094445]
[1742480707043,0.00141504,86569.0,86568.0,0.27863464]
[1742480707204,0.001,86599.0,86598.0,0.011547]
[1742480707399,0.0011245,86599.0,86598.0,0.82036203]
[1742480707619,0.0011245,86599.0,86598.0,0.11957503]
[1742480707809,0.0011245,86599.0,86598.0,0.5502]
[1742480708212,0.0011245,86599.0,86598.0,0.68132203]
[1742480708426,0.0011245,86599.0,86598.0,0.68972]
[1742480708705,0.0011245,86599.0,86598.0,0.5502]
[1742480709189,0.0011245,86599.0,86593.0,0.151388]
[1742480709190,0.0840245,86599.0,86593.0,0.151388]
[1742480709401,0.3265205,86599.0,86598.0,0.001]
[1742480709598,0.230956,86597.0,86594.0,0.11957503]
[1742480709800,0.011548,86595.0,86593.0,0.13984]
[1742480710006,0.230959,86596.0,86593.0,0.13984]
[1742480710221,0.230959,86596.0,86591.0,0.13972]
[1742480710427,0.230962,86595.0,86591.0,0.13972]
[1742480710641,0.011548,86592.0,86591.0,0.13972]
[1742480710849,0.011548,86592.0,86584.0,0.230989]
[1742480711052,0.011548,86589.0,86585.0,0.11957503]
[1742480711259,0.011548,86589.0,86556.0,0.02256954]
[1742480711260,0.231018,86574.0,86568.0,0.370711]
[1742480711485,0.01155,86577.0,86568.0,0.370711]
[1742480711486,0.01155,86577.0,86570.0,0.011551]
[1742480711698,0.24255,86580.0,86572.0,0.011551]
[1742480711906,0.011548,86591.0,86580.0,0.242549]
[1742480712115,0.0840245,86599.0,86596.0,0.242502]
[1742480712314,0.0840245,86599.0,86598.0,0.001]
[1742480712522,0.3955715,86599.0,86598.0,0.001]
[1742480712735,0.242506,86596.0,86590.0,0.370652]
[1742480712936,0.3,86598.0,86593.0,0.011548]
[1742480713142,0.0840245,86599.0,86593.0,0.011548]
[1742480713143,0.0840245,86599.0,86597.0,0.011547]
[1742480713351,0.0011245,86599.0,86598.0,0.242499]
[1742480714304,0.0011245,86599.0,86595.0,0.011548]
[1742480714514,0.0011245,86599.0,86597.0,0.230953]
[1742480714932,0.2320755,86599.0,86595.0,0.242502]
[1742480715141,0.011548,86595.0,86592.0,0.55]
[1742480715393,0.2320745,86599.0,86593.0,0.230963]
[1742480715620,0.2320745,86599.0,86597.0,0.002]
[1742480715621,0.2436215,86599.0,86597.0,0.002]
[1742480715831,0.2436215,86599.0,86596.0,0.230954]
[1742480715832,0.0011245,86599.0,86596.0,0.230954]
[1742480716042,0.0011245,86599.0,86598.0,0.011547]
[1742480716676,0.0011245,86599.0,86598.0,0.13112203]
[1742480717328,0.0011245,86599.0,86598.0,0.14203923]
[1742480717535,0.0011245,86599.0,86598.0,0.14403923]
[1742480717743,0.0011245,86599.0,86598.0,0.14173018]
[1742480718374,0.02209283,86603.0,86602.0,0.242488]
[1742480718557,0.02209283,86603.0,86602.0,0.36206303]
[1742480718991,0.02209283,86603.0,86594.0,0.011548]
[1742480719278,0.230942,86602.0,86599.0,0.011547]
[1742480719511,0.02209283,86603.0,86601.0,0.230942]
[1742480720061,0.02209283,86603.0,86602.0,0.005]
[1742480720272,0.02209283,86603.0,86598.0,0.242498]
[1742480720273,0.25303183,86603.0,86599.0,0.230949]
[1742480720491,0.25303183,86603.0,86602.0,0.011547]
[1742480720492,0.02209283,86603.0,86602.0,0.011547]
[1742480720710,8.3e-07,86603.0,86602.0,0.13343118]